bitfinex-derivatives/quotes_SOLF0:USTF0_20250216
["timestamp","ask_amount","ask_price","bid_price","bid_amount"]
[1739709301252,201.0077,192.97,192.79,7.18544653]
[1739709301851,0.03626708,192.9,192.86,0.03723283]
[1739709318571,0.03626708,192.9,192.69,116.3]
[1739709318871,185.4577,192.9,192.7,4.7628]
[1739709319666,185.4577,192.9,192.78,0.03763687]
[1739709319971,185.4577,192.9,192.7,4.7628]
[1739709320171,0.03474538,192.86,192.82,0.03541908]
[1739709320370,185.4577,192.9,192.71,0.95302137]
[1739709320573,0.03707735,192.86,192.82,0.03591465]
[1739709340983,1.6345,192.94,192.82,0.03591465]
[1739709341289,1.6345,192.94,192.71,0.952916]
[1739709341982,1.6751,192.96,192.71,0.952916]
[1739709342186,0.03805718,192.84,192.81,0.03494348]
[1739709342393,1.6751,192.96,192.72,0.952916]
[1739709342589,1.6171,192.99,192.74,28.74178614]
[1739709342789,1.6171,192.99,192.75,0.952916]
[1739709343482,0.03314628,192.89,192.85,0.03617413]
[1739709343684,1.6171,192.99,192.76,0.95259695]
[1739709343888,0.0340263,192.89,192.85,0.03319152]
[1739709344085,1.6171,192.99,192.78,0.95259695]
[1739709344289,0.03596754,192.89,192.85,0.03424668]
[1739709344596,1.6171,192.99,192.79,0.95259695]
[1739709344792,0.03347375,192.89,192.85,0.03587213]
[1739709344991,1.6171,192.99,192.79,0.95259695]
[1739709345192,0.03619622,192.89,192.85,0.03778783]
[1739709345387,1.6171,192.99,192.79,0.95259695]
[1739709345596,0.03601199,192.89,192.85,0.03677024]
[1739709345792,1.6171,192.99,192.79,0.95259695]
[1739709345999,0.03898527,192.89,192.85,0.03990922]
[1739709346298,1.6171,192.99,192.8,1.5569]
[1739709346597,0.03346575,192.89,192.85,0.03473956]
[1739709346791,1.6171,192.99,192.8,1.5569]
[1739709346991,0.03812166,192.86,192.85,0.03761963]
[1739709347296,1.6171,192.99,192.81,0.95252162]
[1739709347494,1.6171,192.99,192.81,2.50692162]
[1739709347798,1.6171,192.99,192.81,1.5544]
[1739709348296,0.03592005,192.92,192.88,0.03450314]
[1739709377517,0.03592005,192.92,192.88,1.68980314]
[1739709378123,0.03592005,192.92,192.89,0.95212284]
[1739709378824,68.22991287,193.04,192.89,0.95212284]
[1739709379325,1.6038,193.04,192.89,0.95212284]
[1739709379916,0.03465391,192.98,192.95,0.03916755]
[1739709386026,0.03465391,192.98,192.86,28.74178614]
[1739709386226,1.6038,193.04,192.86,28.74178614]
[1739709386227,185.4577,193.03,192.86,28.74178614]
[1739709386822,185.4577,193.03,192.82,7.18544653]
[1739709387325,0.0386782,192.94,192.91,0.03522886]
[1739709387526,185.4577,193.03,192.82,7.18544653]
[1739709388427,15.55,193.01,192.82,7.18544653]
[1739709388729,0.03564231,192.93,192.9,0.03270639]
[1739709388932,15.55,193.01,192.82,7.18544653]
[1739709389129,185.4577,193.0,192.82,7.18544653]
[1739709390128,0.03934212,192.93,192.89,0.03986238]
[1739709390328,0.03934212,192.93,192.82,7.18544653]
[1739709390835,0.03934212,192.93,192.8,4.37692817]
[1739709391036,185.4577,193.0,192.8,4.37692817]
[1739709391337,31.09,193.03,192.8,4.37692817]
[1739709391632,0.03478866,192.92,192.88,0.03944629]
[1739709391833,31.09,193.03,192.8,4.37692817]
[1739709392032,0.03399456,192.92,192.88,0.03819916]
[1739709392233,31.09,193.03,192.8,4.37692817]
[1739709392434,0.03790592,192.92,192.88,0.03442783]
[1739709392633,31.09,193.03,192.8,4.37692817]
[1739709392834,0.03357042,192.92,192.88,0.03501499]
[1739709393035,31.09,193.03,192.78,1.5488]
[1739709394136,0.0334648,192.92,192.89,0.03835269]
[1739709394336,201.0077,193.02,192.76,0.95268175]
[1739709394634,185.4577,193.01,192.76,0.95268175]
[1739709394835,185.4577,193.01,192.77,0.95268415]
[1739709395132,185.4577,193.01,192.75,1.6561]
[1739709395335,185.4577,193.01,192.76,0.95268708]
[1739709395525,0.03724392,192.9,192.86,0.03317346]
[1739709395727,185.4577,193.01,192.76,0.95268708]
[1739709395933,0.03279033,192.9,192.86,0.03625131]
[1739709396132,185.4577,193.0,192.76,0.95268708]
[1739709396334,0.03421291,192.9,192.86,0.03405202]
[1739709396530,1.5438,192.98,192.76,0.95268708]
[1739709396729,0.0352922,192.85,192.81,0.03612543]
[1739709396928,1.6294,192.97,192.76,0.95268708]
[1739709397135,0.03594259,192.85,192.81,0.03960194]
[1739709397331,1.6294,192.97,192.76,0.95268708]
[1739709397537,0.038648,192.85,192.81,0.03903609]
[1739709397732,1.6294,192.97,192.76,0.95268708]
[1739709397937,0.03537243,192.85,192.81,0.03775239]
[1739709398135,1.6294,192.97,192.76,0.95268708]
[1739709398335,0.03513559,192.85,192.81,0.03420044]
[1739709398536,1.6294,192.97,192.76,0.95268708]
[1739709398737,0.03921555,192.82,192.79,0.03522832]
[1739709398936,185.4577,192.96,192.75,1.6561]
[1739709399237,185.4577,192.95,192.75,1.6561]
[1739709399439,0.0356836,192.87,192.84,0.03424449]
[1739709399637,1.5778,192.94,192.84,0.03424449]
[1739709399828,0.03885215,192.87,192.84,0.03424449]
[1739709485417,185.4577,192.86,192.71,1.5276]
[1739709486718,0.03615982,192.8,192.71,1.5276]
[1739709489321,0.03615982,192.8,192.68,28.74178614]
[1739709489619,0.03615982,192.8,192.64,260.76516498]
[1739709489620,1.5607,192.85,192.65,7.18544653]
[1739709489821,0.03545235,192.76,192.65,7.18544653]
[1739709493123,0.03545235,192.76,192.64,119.4488]
[1739709493622,0.03743254,192.72,192.64,119.4488]
[1739709499826,1.6532,192.83,192.64,119.4488]
[1739709500022,185.4577,192.82,192.64,119.4488]
[1739709501027,0.0339572,192.75,192.71,0.03862717]
[1739709553366,0.0339572,192.75,192.62,1.6507]
[1739709553565,185.4577,192.74,192.62,1.6507]
[1739709553767,3.2412,192.73,192.62,1.6507]
[1739709554568,0.03709972,192.69,192.62,1.6507]
[1739709562883,0.03709972,192.69,192.56,65.85542313]
[1739709563083,1.5918,192.72,192.56,67.47462313]
[1739709563285,0.03471775,192.64,192.56,67.47462313]
[1739709567476,185.4577,192.71,192.56,67.47462313]
[1739709568583,0.0382031,192.65,192.62,0.0388548]
[1739709570386,3.2412,192.73,192.62,0.0388548]
[1739709570682,1.6245,192.78,192.62,0.0388548]
[1739709570892,4.829,192.78,192.56,67.47462313]
[1739709571094,4.829,192.78,192.57,0.95366228]
[1739709571591,0.03455132,192.69,192.66,0.03677074]
[1739709571893,4.829,192.78,192.56,67.47462313]
[1739709572190,0.0344785,192.69,192.66,0.03899101]
[1739709572492,4.829,192.78,192.57,0.95365228]
[1739709572789,0.03896684,192.69,192.66,0.0358987]
[1739709572991,4.829,192.78,192.57,0.95365228]
[1739709573182,4.829,192.78,192.66,0.03917801]
[1739709573387,4.829,192.78,192.57,0.95365228]
[1739709573585,0.0330653,192.74,192.7,0.03488882]
[1739709573787,0.0330653,192.74,192.56,67.47462313]
[1739709573788,4.829,192.78,192.57,0.95366027]
[1739709574091,0.03713141,192.74,192.7,0.03920657]
[1739709574391,0.03735224,192.74,192.7,0.03560219]
[1739709604113,0.03735224,192.74,192.57,7.18544653]
[1739709604412,34.3345,192.78,192.57,7.18544653]
[1739709605216,0.03899885,192.69,192.66,0.03383408]
[1739709605411,0.03899885,192.69,192.57,7.18544653]
[1739709605713,0.80068248,192.77,192.57,7.18544653]
[1739709606415,0.80068248,192.77,192.56,1.6192]
[1739709606616,0.03512313,192.69,192.56,1.6192]
[1739709606916,31.13,192.76,192.56,1.6192]
[1739709607317,0.03481787,192.68,192.56,1.6192]
[1739709607512,31.13,192.76,192.56,1.6192]
[1739709607714,0.03336156,192.64,192.56,1.6192]
[1739709608014,0.03671971,192.62,192.56,1.6192]
[1739709608213,31.13,192.76,192.56,1.6192]
[1739709608409,0.03697408,192.61,192.56,1.6192]
[1739709608615,31.13,192.76,192.56,1.6192]
[1739709608815,0.03766167,192.6,192.56,1.6192]
[1739709609018,31.13,192.76,192.56,1.6192]
[1739709609216,1.5416,192.75,192.56,1.6192]
[1739709610221,0.0376886,192.67,192.64,0.03331643]
[1739709610515,1.5416,192.75,192.64,0.03331643]
[1739709610715,0.03678565,192.67,192.64,0.03331643]
[1739709611019,0.03432521,192.67,192.64,0.03331643]
[1739709668351,185.4577,192.77,192.64,0.03331643]
[1739709668554,185.4577,192.77,192.57,0.95368622]
[1739709669458,0.03376466,192.69,192.65,0.03865544]
[1739709669657,72.5428988,192.78,192.57,0.95358046]
[1739709669848,0.03334645,192.69,192.65,0.0367727]
[1739709670045,72.5428988,192.78,192.58,4.38912829]
[1739709670251,0.03453653,192.69,192.65,0.03659615]
[1739709670546,72.5428988,192.78,192.59,0.95358046]
[1739709670745,0.0343154,192.69,192.65,0.03902425]
[1739709670954,72.5428988,192.78,192.59,0.95358046]
[1739709671154,0.03300637,192.69,192.65,0.03779347]
[1739709671357,72.5428988,192.78,192.58,4.38912829]
[1739709671653,0.03529153,192.69,192.65,0.03370482]
[1739709671852,72.5428988,192.78,192.59,0.95356289]
[1739709672056,0.03854317,192.69,192.65,0.03699128]
[1739709672251,72.5428988,192.78,192.59,0.95356289]
[1739709672452,0.03533534,192.69,192.65,0.03621035]
[1739709672649,72.5428988,192.78,192.59,0.95356289]
[1739709672850,0.03761044,192.69,192.65,0.03653725]
[1739709673052,72.5428988,192.78,192.59,0.95356289]
[1739709673358,0.03635438,192.69,192.65,0.03436468]
[1739709673658,72.5428988,192.78,192.59,0.95356289]
[1739709673854,0.03885122,192.69,192.65,0.03356097]
[1739709674054,72.5428988,192.78,192.59,0.95356289]
[1739709674353,0.03643644,192.69,192.65,0.03750718]
[1739709674558,72.5428988,192.78,192.59,0.95356289]
[1739709674753,0.0367077,192.69,192.65,0.03796343]
[1739709674963,72.5428988,192.78,192.59,0.95356289]
[1739709675165,0.03373083,192.69,192.65,0.03934217]
[1739709675360,72.5428988,192.78,192.59,0.95356289]
[1739709675562,0.03649055,192.69,192.65,0.03303237]
[1739709675758,72.5428988,192.78,192.59,0.95356289]
[1739709675960,0.03913478,192.69,192.65,0.03989483]
[1739709676161,72.5428988,192.78,192.59,0.95356289]
[1739709676355,0.0359592,192.69,192.65,0.03630814]
[1739709676559,72.5428988,192.78,192.59,0.95356289]
[1739709676862,0.03314743,192.69,192.65,0.03791013]
[1739709677064,72.5428988,192.78,192.59,0.95356289]
[1739709677265,0.03320395,192.69,192.65,0.03367638]
[1739709677462,72.5428988,192.78,192.59,0.95356289]
[1739709677669,0.03503549,192.69,192.65,0.03583898]
[1739709677856,72.5428988,192.78,192.59,0.95356289]
[1739709678056,0.0359903,192.69,192.65,0.03700532]
[1739709678261,72.5428988,192.78,192.61,1.5548]
[1739709678457,0.03723797,192.69,192.65,0.03902196]
[1739709678662,72.5428988,192.78,192.62,1.5243]
[1739709678861,0.03657065,192.69,192.65,0.03561398]
[1739709679165,72.5428988,192.78,192.62,1.5243]
[1739709679468,0.03534331,192.69,192.65,0.03665885]
[1739709679659,72.5428988,192.78,192.62,1.5243]
[1739709680763,0.03309291,192.72,192.68,0.03488498]
[1739709683369,185.4577,192.83,192.68,0.03488498]
[1739709683567,15.56,192.89,192.68,0.03488498]
[1739709683568,4.7968,192.88,192.68,0.03488498]
[1739709683866,4.7968,192.88,192.63,0.953472]
[1739709684558,0.03305718,192.77,192.74,0.03479303]
[1739709684759,4.7968,192.88,192.62,1.5243]
[1739709684964,4.7968,192.88,192.63,0.95317935]
[1739709685270,0.03815277,192.77,192.74,0.038781]
[1739709685570,4.7968,192.88,192.64,11.56373332]
[1739709685766,0.03426023,192.77,192.74,0.03487094]
[1739709685963,4.7968,192.88,192.65,0.95317935]
[1739709686270,0.03941333,192.77,192.74,0.03818905]
[1739709686465,4.7968,192.88,192.65,0.95317935]
[1739709686664,0.03617689,192.77,192.74,0.0391568]
[1739709686867,4.7968,192.88,192.65,0.95317935]
[1739709687065,0.03330331,192.77,192.74,0.03866083]
[1739709687262,4.7968,192.88,192.65,0.95317935]
[1739709687471,0.03648006,192.77,192.74,0.03448876]
[1739709687667,4.7968,192.88,192.65,0.95317935]
[1739709687869,0.03466016,192.77,192.74,0.03725566]
[1739709688067,4.7968,192.88,192.64,0.95317935]
[1739709688269,4.7968,192.88,192.65,0.95317935]
[1739709688568,0.03509816,192.78,192.74,0.03312325]
[1739709688769,4.7968,192.88,192.63,28.74178614]
[1739709688969,0.03956976,192.78,192.74,0.03796246]
[1739709689169,4.7968,192.88,192.68,1.6365]
[1739709689471,0.03654619,192.78,192.74,0.03666759]
[1739709689771,4.7968,192.88,192.69,1.564]
[1739709689972,0.03401581,192.78,192.74,0.038834]
[1739709690171,4.7968,192.88,192.69,1.564]
[1739709690369,0.03543533,192.78,192.74,0.03562784]
[1739709690570,4.7968,192.88,192.69,1.564]
[1739709690771,0.03640189,192.78,192.74,0.03927027]
[1739709690972,4.7968,192.88,192.69,1.564]
[1739709691172,0.03926004,192.78,192.74,0.03670617]
[1739709691472,4.7968,192.88,192.69,1.564]
[1739709691672,0.03867438,192.78,192.74,0.0350911]
[1739709691872,4.7968,192.88,192.69,1.564]
[1739709692073,0.03797964,192.78,192.74,0.0340762]
[1739709692373,4.7968,192.88,192.69,1.564]
[1739709692574,0.03311511,192.78,192.74,0.0356954]
[1739709692774,4.7968,192.88,192.69,1.564]
[1739709692974,0.03394299,192.78,192.74,0.03785845]
[1739709693174,4.7968,192.88,192.69,1.564]
[1739709693374,0.03660237,192.78,192.74,0.03714186]
[1739709693674,4.7968,192.88,192.69,1.564]
[1739709693875,0.03503851,192.78,192.74,0.03658104]
[1739709694073,4.7968,192.88,192.69,1.564]
[1739709694275,0.03436626,192.78,192.74,0.03560325]
[1739709694573,4.7968,192.88,192.69,1.564]
[1739709694772,0.03426817,192.78,192.74,0.03307624]
[1739709694975,4.7968,192.88,192.69,1.564]
[1739709695175,0.03951529,192.78,192.74,0.03903251]
[1739709695370,0.03951529,192.78,192.69,1.564]
[1739709695567,0.03535878,192.75,192.72,0.0349281]
[1739709695766,4.7968,192.88,192.69,1.564]
[1739709695967,0.03330144,192.75,192.72,0.03301624]
[1739709696270,0.03444032,192.75,192.69,1.564]
[1739709696472,0.03444032,192.75,192.72,0.03890475]
[1739709698673,4.7968,192.88,192.72,0.03890475]
[1739709698874,4.7968,192.88,192.7,0.95306682]
[1739709699280,3.2097,192.88,192.7,0.95306682]
[1739709699779,0.03746702,192.81,192.77,0.03914736]
[1739709715289,3.0786,192.96,192.77,0.03914736]
[1739709715493,3.0786,192.96,192.76,0.95277475]
[1739709716388,0.03773789,192.88,192.84,0.03560752]
[1739709716593,3.0786,192.96,192.76,0.95277475]
[1739709716795,3.0786,192.96,192.84,0.03291369]
[1739709716991,0.03888927,192.88,192.77,0.95268887]
[1739709717191,3.0786,192.96,192.88,0.03684055]
[1739709717490,0.03686302,192.84,192.76,0.95269149]
[1739709717687,3.0786,192.96,192.76,0.95269149]
[1739709717893,0.03645271,192.82,192.78,0.0369121]
[1739709718096,3.0786,192.96,192.76,0.95269149]
[1739709718391,0.03654928,192.82,192.76,0.95269149]
[1739709718592,3.0786,192.96,192.84,0.03352911]
[1739709718792,0.03490743,192.88,192.84,0.03352911]
[1739709718993,0.03710542,192.92,192.88,0.03806762]
[1739709719192,3.0786,192.96,192.76,0.95269149]
[1739709719393,3.0786,192.96,192.88,0.03714507]
[1739709719591,0.03597013,192.92,192.88,0.03714507]
[1739709719795,0.03597013,192.92,192.9,0.03670998]
[1739709719997,3.0786,192.96,192.76,0.95269149]
[1739709720194,0.03911913,192.93,192.89,0.03309007]
[1739709720396,3.0786,192.96,192.75,3.231]
[1739709720695,0.03302961,192.93,192.89,0.0398835]
[1739709720896,3.0786,192.96,192.76,0.9526502]
[1739709721094,0.03277252,192.93,192.89,0.03945022]
[1739709721395,3.0786,192.96,192.89,0.03453992]
[1739709721692,0.03601498,192.93,192.89,0.03453992]
[1739709733307,0.03601498,192.93,192.75,56.04995009]
[1739709733503,34.2086,192.96,192.75,56.04995009]
[1739709733810,18.6386,192.96,192.75,56.04995009]
[1739709734006,3.0786,192.96,192.75,56.04995009]
[1739709734411,0.03888726,192.87,192.84,0.03271164]
[1739709734607,185.4577,192.95,192.75,56.04995009]
[1739709734807,0.03823633,192.87,192.84,0.03363755]
[1739709735005,185.4577,192.94,192.75,56.04995009]
[1739709735309,0.03649016,192.87,192.84,0.03373285]
[1739709735509,3.0786,192.96,192.75,56.04995009]
[1739709735710,0.03632643,192.83,192.79,0.0352443]
[1739709735906,3.0786,192.96,192.75,56.04995009]
[1739709736209,0.03884091,192.83,192.79,0.03653571]
[1739709736415,0.03399824,192.87,192.79,0.0372019]
[1739709736608,3.0786,192.96,192.76,0.95277821]
[1739709736810,0.03484609,192.85,192.81,0.03373363]
[1739709737009,3.0786,192.96,192.76,0.95277821]
[1739709737209,0.03322134,192.85,192.81,0.0334363]
[1739709737410,3.0786,192.96,192.76,0.95277821]
[1739709737605,0.03428616,192.85,192.81,0.03862755]
[1739709737810,3.0786,192.96,192.76,0.95268603]
[1739709738010,0.03627766,192.85,192.81,0.03974078]
[1739709738210,3.0786,192.96,192.76,0.95268603]
[1739709738512,0.03718623,192.85,192.81,0.03630047]
[1739709738712,3.0786,192.96,192.76,0.95268603]
[1739709739012,0.03744717,192.85,192.81,0.03871318]
[1739709739218,3.0786,192.96,192.78,0.95268603]
[1739709739418,0.03595785,192.85,192.81,0.03975716]
[1739709739616,3.0786,192.96,192.78,1.5255]
[1739709739815,0.03343233,192.85,192.81,0.03430983]
[1739709740016,3.0786,192.96,192.78,1.5255]
[1739709740217,0.03386538,192.85,192.81,0.03925484]
[1739709740417,3.0786,192.96,192.79,0.95263599]
[1739709740613,0.03294367,192.85,192.79,0.95263599]
[1739709740819,0.037237,192.89,192.86,0.03749361]
[1739709741014,3.0786,192.96,192.78,8.71094653]
[1739709741215,0.03824235,192.89,192.86,0.03495123]
[1739709741414,3.0786,192.96,192.86,0.03495123]
[1739709741612,3.0786,192.96,192.78,8.71094653]
[1739709741613,0.03358805,192.89,192.78,7.18544653]
[1739709741819,3.0786,192.96,192.78,7.18544653]
[1739709742811,0.03466915,192.89,192.85,0.03913574]
[1739709743214,0.03466915,192.89,192.77,7.18544653]
[1739709743419,185.4577,192.95,192.77,7.18544653]
[1739709743619,3.0786,192.96,192.77,7.18544653]
[1739709744319,0.03480749,192.88,192.85,0.03983615]
[1739709744519,185.4577,192.95,192.85,0.03983615]
[1739709744719,0.03528486,192.88,192.85,0.03983615]
[1739709744919,185.4577,192.95,192.85,0.03983615]
[1739709745117,0.03855525,192.88,192.85,0.03983615]
[1739709745312,3.0786,192.96,192.85,0.03983615]
[1739709745313,185.4577,192.95,192.85,0.03983615]
[1739709745519,0.03602414,192.88,192.85,0.03983615]
[1739709745717,185.4577,192.94,192.75,7.18544653]
[1739709745920,0.03865198,192.88,192.75,7.18544653]
[1739709746221,185.4577,192.93,192.75,7.18544653]
[1739709746914,0.03373169,192.86,192.82,0.03565682]
[1739709783447,0.03373169,192.86,192.7,123.54544653]
[1739709783648,185.4577,192.85,192.7,123.54544653]
[1739709783850,1.6265,192.84,192.7,123.54544653]
[1739709784348,1.6265,192.84,192.7,116.36]
[1739709784547,0.03875426,192.79,192.75,0.03684616]
[1739709905455,31.13,192.77,192.65,1.6094]
[1739709905660,15.57,192.75,192.65,1.6094]
[1739709906656,0.0333054,192.72,192.65,1.6094]
[1739709907955,0.0333054,192.72,192.59,3.1349]
[1739709908157,185.4577,192.71,192.6,1.6762]
[1739709908456,0.03590393,192.67,192.6,1.6762]
[1739709912957,185.4577,192.71,192.6,1.6762]
[1739709914360,0.03559265,192.67,192.64,0.03432628]
[1739709935586,15.56,192.85,192.64,0.03432628]
[1739709935789,3.1771,192.82,192.6,1.6762]
[1739709936680,0.03795053,192.72,192.69,0.03987993]
[1739709936883,3.1771,192.82,192.6,1.6762]
[1739709937083,0.03657097,192.72,192.69,0.03505173]
[1739709937283,3.1771,192.82,192.6,1.6762]
[1739709937584,0.03574733,192.72,192.69,0.03758464]
[1739709937784,3.1771,192.82,192.6,1.6762]
[1739709937988,0.03888314,192.68,192.64,0.03885112]
[1739709938184,185.4577,192.81,192.6,1.6762]
[1739709938378,185.4577,192.8,192.6,1.6762]
[1739709939486,0.03316951,192.72,192.68,0.03828576]
[1739709939688,185.4577,192.8,192.6,1.6762]
[1739709939889,0.03596907,192.72,192.68,0.03866619]
[1739709940189,185.4577,192.79,192.6,1.6762]
[1739709940392,0.03471185,192.72,192.68,0.03565589]
[1739709940582,185.4577,192.78,192.6,1.6762]
[1739709940786,0.03385929,192.68,192.64,0.03426371]
[1739709940991,185.4577,192.78,192.61,4.57725933]
[1739709941289,185.4577,192.77,192.61,4.57725933]
[1739709941684,185.4577,192.77,192.62,1.5849]
[1739709942090,185.4577,192.77,192.68,0.03315085]
[1739709942290,0.03953938,192.71,192.68,0.03315085]
[1739709942493,1.6485,192.81,192.62,1.5849]
[1739709942687,1.6485,192.81,192.68,0.03589877]
[1739709942887,1.6485,192.81,192.62,1.5849]
[1739709943090,0.03540842,192.76,192.73,0.03864376]
[1739709946993,185.4577,192.8,192.73,0.03864376]
[1739709948290,0.0359806,192.78,192.73,0.03864376]
[1739709951089,1.5368,192.86,192.73,0.03864376]
[1739709951289,1.6632,192.88,192.64,0.95334975]
[1739709952393,0.03957563,192.78,192.74,0.03414316]
[1739709952689,1.6632,192.88,192.64,0.95334975]
[1739709953692,0.03563786,192.78,192.74,0.03722624]
[1739709953897,1.586,192.93,192.64,0.95334975]
[1739709954098,1.586,192.93,192.65,33.2968331]
[1739709954491,1.586,192.93,192.66,1.5328]
[1739709955094,0.03825919,192.81,192.78,0.03342978]
[1739709955287,0.03825919,192.81,192.66,1.5328]
[1739709955288,1.586,192.93,192.67,0.95334975]
[1739709955491,0.03884787,192.81,192.78,0.0330303]
[1739709955692,0.03884787,192.81,192.67,0.95334975]
[1739709955693,1.586,192.93,192.67,0.95334975]
[1739709955890,0.0330519,192.81,192.78,0.03657553]
[1739709956085,1.586,192.93,192.67,0.95334975]
[1739709956292,0.03366124,192.81,192.78,0.03627707]
[1739709956594,0.03366124,192.81,192.67,0.95334975]
[1739709956595,1.586,192.93,192.67,0.95334975]
[1739709956895,0.0397887,192.81,192.78,0.03812316]
[1739709957095,1.586,192.93,192.67,0.95334975]
[1739709957396,0.03460011,192.81,192.78,0.03669674]
[1739709957593,1.586,192.93,192.67,0.95334975]
[1739709957793,1.586,192.93,192.78,0.03870498]
[1739709957794,0.03429452,192.81,192.78,0.03870498]
[1739709957993,1.586,192.93,192.67,0.95334975]
[1739709958289,0.03577806,192.81,192.78,0.03336372]
[1739709958494,1.586,192.93,192.67,0.95334975]
[1739709958696,0.0394146,192.81,192.78,0.03858192]
[1739709958895,1.586,192.93,192.67,0.95334975]
[1739709959096,0.03833383,192.81,192.78,0.03296455]
[1739709959297,1.586,192.93,192.69,0.95334975]
[1739709959599,0.03366559,192.81,192.78,0.03647228]
[1739709959798,1.586,192.93,192.7,0.95334975]
[1739709959998,0.03760145,192.81,192.78,0.03533883]
[1739709960189,1.586,192.93,192.7,0.95334975]
[1739709960395,0.03727123,192.81,192.78,0.03323739]
[1739709960591,1.586,192.93,192.7,0.95334975]
[1739709960795,0.03956819,192.81,192.78,0.03702026]
[1739709960991,1.586,192.93,192.7,0.95334975]
[1739709961198,1.586,192.93,192.78,0.03736521]
[1739709961402,0.03775195,192.87,192.7,0.95334975]
[1739709961598,1.586,192.93,192.84,0.03500381]
[1739709961800,0.03518134,192.8,192.7,0.95334975]
[1739709962003,1.586,192.93,192.87,0.03440527]
[1739709962301,0.03421438,192.77,192.7,0.95334975]
[1739709962496,1.586,192.93,192.69,1.5251]
[1739709962697,0.03833,192.75,192.72,0.03739062]
[1739709962898,1.586,192.93,192.69,1.5251]
[1739709963099,0.03947856,192.75,192.72,0.03698766]
[1739709963400,0.03982046,192.75,192.69,1.5251]
[1739709963598,0.03982046,192.75,192.72,0.03965365]
[1739710012641,3.1242,192.82,192.72,0.03965365]
[1739710013931,0.03858528,192.79,192.72,0.03965365]
[1739710082201,0.03858528,192.79,192.72,1.66825365]
[1739710082802,0.03858528,192.79,192.73,1.6689]
[1739710096113,0.03858528,192.79,192.72,8.85370018]
[1739710098312,0.03858528,192.79,192.72,1.66825365]
[1739710102117,0.03858528,192.79,192.72,0.03965365]
[1739710104118,0.03858528,192.79,192.72,4.61560846]
[1739710106521,0.03858528,192.79,192.72,0.03965365]
[1739710150653,3.1564,192.87,192.72,0.03965365]
[1739710150859,3.1564,192.87,192.68,0.95311715]
[1739710151657,3.1564,192.87,192.69,0.95296753]
[1739710151859,3.1564,192.87,192.76,0.03496958]
[1739710151860,0.03698278,192.79,192.76,0.03496958]
[1739710152258,0.03907973,192.79,192.76,0.03496958]
[1739710157251,3.1564,192.87,192.76,0.03496958]
[1739710158561,0.03580415,192.83,192.76,0.03496958]
[1739710171474,3.1626,192.98,192.76,0.03496958]
[1739710171875,3.1626,192.98,192.75,0.95275992]
[1739710172579,0.03325421,192.88,192.85,0.03538893]
[1739710172770,3.1626,192.98,192.75,0.95275992]
[1739710172965,0.03651208,192.88,192.85,0.03580643]
[1739710173274,3.1626,192.98,192.75,0.95275992]
[1739710173472,0.0346871,192.88,192.85,0.03548114]
[1739710173775,3.1626,192.98,192.76,0.95247383]
[1739710174075,0.03614498,192.88,192.85,0.03750179]
[1739710174376,1.557,192.97,192.76,0.95247383]
[1739710174575,0.03286561,192.88,192.85,0.03963645]
[1739710174766,1.557,192.97,192.76,0.95247383]
[1739710175273,0.03379204,192.88,192.85,0.03521118]
[1739710175475,1.557,192.97,192.78,0.95248326]
[1739710175669,1.557,192.97,192.85,0.03664493]
[1739710176071,0.03815911,192.93,192.89,0.03858049]
[1739710209107,0.03815911,192.93,192.84,7.18544653]
[1739710210010,0.03815911,192.93,192.83,28.74178614]
[1739710210210,0.03815911,192.93,192.87,0.03311174]
[1739710212614,0.03815911,192.93,192.77,105.69658247]
[1739710212819,187.0147,192.97,192.77,105.69658247]
[1739710213718,0.03576478,192.89,192.86,0.03499742]
[1739710214017,187.0147,192.97,192.86,0.03499742]
[1739710214318,0.03432939,192.89,192.77,105.69658247]
[1739710214516,185.4577,192.96,192.77,76.95479633]
[1739710214713,1.557,192.97,192.77,76.95479633]
[1739710214714,185.4577,192.95,192.77,76.95479633]
[1739710215420,0.03817108,192.88,192.85,0.03937724]
[1739710215820,185.4577,192.95,192.85,0.03937724]
[1739710216119,185.4577,192.94,192.85,0.03937724]
[1739710216319,0.03906748,192.92,192.77,76.95479633]
[1739710216518,185.4577,192.91,192.88,0.03678572]
[1739710216708,0.03731252,192.87,192.77,76.95479633]
[1739710217820,0.03731252,192.87,192.81,0.03745375]
[1739710379333,185.4577,192.86,192.81,0.03745375]
[1739710379538,188.6094,192.86,192.81,0.03745375]
[1739710396145,185.4577,192.85,192.81,0.03745375]
[1739710401646,185.4577,192.84,192.81,0.03745375]
[1739710405153,4.671,192.86,192.81,0.03745375]